{"text_format":"3","workbook":"xlsx","n_sheets":1,"sheets":["Pirkinių sąrašas"],"not_rendered":{"images":1,"defined_names":3},"read":"whole","date_system":"1900"}

{"sheet":"Pirkinių sąrašas","index":0,"n_rows":31,"n_cols":8,"rows_kept":31,"merged":[[1,1,1,2]]}
[null,"Pirkinių sąrašas"]
[null,"DATA"]
[null,"Atlikta?","Prekė","Kategorija","Kiekis","Kaina","Sudėtinė kaina","Prekės ženklas / komentarai"]
[null,null,"Apelsinai","Produktai",null,null,{"$f":"IFERROR(SUM(MaistoPrekiųSąrašas[Kiekis]*MaistoPrekiųSąrašas[Kaina]), \"\")","v":{"v":0,"d":"0.00 €"}}]
[null,null,"Obuoliai","Produktai",null,null,{"$f":"IFERROR(SUM(MaistoPrekiųSąrašas[Kiekis]*MaistoPrekiųSąrašas[Kaina]), \"\")","v":{"v":0,"d":"0.00 €"}}]
[null,null,"Bananai","Produktai",null,null,{"$f":"IFERROR(SUM(MaistoPrekiųSąrašas[Kiekis]*MaistoPrekiųSąrašas[Kaina]), \"\")","v":{"v":0,"d":"0.00 €"}}]
[null,null,"Salotos","Produktai",null,null,{"$f":"IFERROR(SUM(MaistoPrekiųSąrašas[Kiekis]*MaistoPrekiųSąrašas[Kaina]), \"\")","v":{"v":0,"d":"0.00 €"}}]
[null,null,"Pomidorai","Produktai",null,null,{"$f":"IFERROR(SUM(MaistoPrekiųSąrašas[Kiekis]*MaistoPrekiųSąrašas[Kaina]), \"\")","v":{"v":0,"d":"0.00 €"}},"  "]
[null,null,"Pienas ","Pieno produktai",null,null,{"$f":"IFERROR(SUM(MaistoPrekiųSąrašas[Kiekis]*MaistoPrekiųSąrašas[Kaina]), \"\")","v":{"v":0,"d":"0.00 €"}}]
[null,null,"Sūris","Pieno produktai",null,null,{"$f":"IFERROR(SUM(MaistoPrekiųSąrašas[Kiekis]*MaistoPrekiųSąrašas[Kaina]), \"\")","v":{"v":0,"d":"0.00 €"}}]
[null,null,"Kiaušiniai","Pieno produktai",null,null,{"$f":"IFERROR(SUM(MaistoPrekiųSąrašas[Kiekis]*MaistoPrekiųSąrašas[Kaina]), \"\")","v":{"v":0,"d":"0.00 €"}}]
[null,null,"Varškės sūris","Pieno produktai",null,null,{"$f":"IFERROR(SUM(MaistoPrekiųSąrašas[Kiekis]*MaistoPrekiųSąrašas[Kaina]), \"\")","v":{"v":0,"d":"0.00 €"}}]
[null,null,"Jautiena","Mėsa",null,null,{"$f":"IFERROR(SUM(MaistoPrekiųSąrašas[Kiekis]*MaistoPrekiųSąrašas[Kaina]), \"\")","v":{"v":0,"d":"0.00 €"}}]
[null,null,"Paukštiena","Mėsa",null,null,{"$f":"IFERROR(SUM(MaistoPrekiųSąrašas[Kiekis]*MaistoPrekiųSąrašas[Kaina]), \"\")","v":{"v":0,"d":"0.00 €"}}]
[null,null,"Kumpis","Mėsa",null,null,{"$f":"IFERROR(SUM(MaistoPrekiųSąrašas[Kiekis]*MaistoPrekiųSąrašas[Kaina]), \"\")","v":{"v":0,"d":"0.00 €"}}]
[null,null,"Sultys","Gėrimai",null,null,{"$f":"IFERROR(SUM(MaistoPrekiųSąrašas[Kiekis]*MaistoPrekiųSąrašas[Kaina]), \"\")","v":{"v":0,"d":"0.00 €"}}]
[null,null,"Kava","Gėrimai",null,null,{"$f":"IFERROR(SUM(MaistoPrekiųSąrašas[Kiekis]*MaistoPrekiųSąrašas[Kaina]), \"\")","v":{"v":0,"d":"0.00 €"}}]
[null,null,"Arbata","Gėrimai",null,null,{"$f":"IFERROR(SUM(MaistoPrekiųSąrašas[Kiekis]*MaistoPrekiųSąrašas[Kaina]), \"\")","v":{"v":0,"d":"0.00 €"}}]
[null,null,"Vanduo","Gėrimai",null,null,{"$f":"IFERROR(SUM(MaistoPrekiųSąrašas[Kiekis]*MaistoPrekiųSąrašas[Kaina]), \"\")","v":{"v":0,"d":"0.00 €"}}]
[null,null,"Makaronai","Makaronai",null,null,{"$f":"IFERROR(SUM(MaistoPrekiųSąrašas[Kiekis]*MaistoPrekiųSąrašas[Kaina]), \"\")","v":{"v":0,"d":"0.00 €"}}]
[null,null,"Ryžiai","Makaronai",null,null,{"$f":"IFERROR(SUM(MaistoPrekiųSąrašas[Kiekis]*MaistoPrekiųSąrašas[Kaina]), \"\")","v":{"v":0,"d":"0.00 €"}}]
[null,null,"Konservai","Sriuba",null,null,{"$f":"IFERROR(SUM(MaistoPrekiųSąrašas[Kiekis]*MaistoPrekiųSąrašas[Kaina]), \"\")","v":{"v":0,"d":"0.00 €"}}]
[null,null,"Šaldyti mišiniai","Sriuba",null,null,{"$f":"IFERROR(SUM(MaistoPrekiųSąrašas[Kiekis]*MaistoPrekiųSąrašas[Kaina]), \"\")","v":{"v":0,"d":"0.00 €"}}]
[null,null,"Duona","Duona",null,null,{"$f":"IFERROR(SUM(MaistoPrekiųSąrašas[Kiekis]*MaistoPrekiųSąrašas[Kaina]), \"\")","v":{"v":0,"d":"0.00 €"}}]
[null,null,"Bulvių traškučiai","Užkandžiai",null,null,{"$f":"IFERROR(SUM(MaistoPrekiųSąrašas[Kiekis]*MaistoPrekiųSąrašas[Kaina]), \"\")","v":{"v":0,"d":"0.00 €"}}]
[null,null,"Riestainiukai","Užkandžiai",null,null,{"$f":"IFERROR(SUM(MaistoPrekiųSąrašas[Kiekis]*MaistoPrekiųSąrašas[Kaina]), \"\")","v":{"v":0,"d":"0.00 €"}}]
[null,null,"Ledai","Užkandžiai",null,null,{"$f":"IFERROR(SUM(MaistoPrekiųSąrašas[Kiekis]*MaistoPrekiųSąrašas[Kaina]), \"\")","v":{"v":0,"d":"0.00 €"}}]
[null,null,"Sausainiai","Užkandžiai",null,null,{"$f":"IFERROR(SUM(MaistoPrekiųSąrašas[Kiekis]*MaistoPrekiųSąrašas[Kaina]), \"\")","v":{"v":0,"d":"0.00 €"}}]
[null,null,"Popierinės lėkštės","Atsargos",null,null,{"$f":"IFERROR(SUM(MaistoPrekiųSąrašas[Kiekis]*MaistoPrekiųSąrašas[Kaina]), \"\")","v":{"v":0,"d":"0.00 €"}}]
[null,null,"Servetėlės","Atsargos",null,null,{"$f":"IFERROR(SUM(MaistoPrekiųSąrašas[Kiekis]*MaistoPrekiųSąrašas[Kaina]), \"\")","v":{"v":0,"d":"0.00 €"}}]
[{"$nulls":6},{"$f":"SUBTOTAL(109,MaistoPrekiųSąrašas[Sudėtinė kaina])","v":{"v":0,"d":"0.00 €"}}]